fUSD/lending_fUSD_20240802
["ID","MTS","AMOUNT","RATE_DAILY","PERIOD"]
[333860106,1722574251649,-151.0,0.00017493,2]
[333860107,1722574251658,-353.13109,0.00017493,2]
[333860108,1722574251667,-442.020559,0.00017493,2]
[333860109,1722574251677,-353.13109,0.00017493,2]
[333860110,1722574251686,-442.020559,0.00017493,2]
[333860111,1722574251695,-151.0,0.00017493,2]
[333860112,1722574251704,-151.0,0.00017493,2]
[333860113,1722574251713,-396.086747,0.00017493,2]
[333860114,1722574251722,-396.086747,0.00017493,2]
[333860115,1722574251731,-440.588384,0.00017493,2]
[333860116,1722574251740,-440.588384,0.00017493,2]
[333860117,1722574251749,-259.481726,0.00017493,2]
[333860118,1722574251759,-259.481726,0.00017493,2]
[333860119,1722574251768,-151.0,0.00017493,2]
[333860120,1722574251777,-151.0,0.00017493,2]
[333860121,1722574251787,-273.480326,0.00017493,2]
[333860122,1722574251796,-273.480326,0.00017493,2]
[333860123,1722574251805,-403.427385,0.00017493,2]
[333860124,1722574251814,-403.427385,0.00017493,2]
[333860125,1722574251823,-2278.906888,0.00017493,2]
[333860126,1722574251832,-263.53605,0.00017493,2]
[333860127,1722574251843,-263.53605,0.00017493,2]
[333860128,1722574251852,-151.0,0.00017493,2]
[333860129,1722574251861,-2278.906888,0.00017493,2]
[333860130,1722574251871,-284.253472,0.00017493,2]
[333860131,1722574251880,-284.253472,0.00017493,2]
[333860132,1722574251889,-151.0,0.00017493,2]
[333860133,1722574251899,-341.59881,0.00017493,2]
[333860134,1722574251909,-6758.65714,0.00017493,2]
[333860135,1722574251918,-151.0,0.00017493,2]
[333860136,1722574251927,-6758.65714,0.00017493,2]
[333860137,1722574251936,-341.59881,0.00017493,2]
[333860138,1722574251946,-276.166449,0.00017493,2]
[333860139,1722574251955,-276.166449,0.00017493,2]
[333860140,1722574251964,-639.579434,0.00017493,2]
[333860141,1722574251974,-639.579434,0.00017493,2]
[333860142,1722574251983,-332.028963,0.00017493,2]
[333860143,1722574251992,-332.028963,0.00017493,2]
[333860144,1722574252001,-781.936404,0.00017493,2]
[333860145,1722574252010,-781.936404,0.00017493,2]
[333860146,1722574252019,-3000.0,0.00017493,2]
[333860147,1722574252029,-3000.0,0.00017493,2]
[333860148,1722574252039,-641.589965,0.00017493,2]
[333860149,1722574252051,-227.723428,0.00017493,2]
[333860150,1722574252061,-641.589965,0.00017493,2]
[333860151,1722574252071,-227.723428,0.00017493,2]
[333860152,1722574252082,-151.0,0.00017493,2]
[333860153,1722574252096,-2923.122339,0.00017493,2]
[333860154,1722574252105,-10000.0,0.00017493,2]
[333860155,1722574252114,-2923.122339,0.00017493,2]
[333860156,1722574252124,-10000.0,0.00017493,2]
[333860157,1722574252135,-3401.317663,0.00017493,2]
[333860158,1722574252144,-576.829577,0.00017493,2]
[333860159,1722574252153,-3401.317663,0.00017493,2]
[333860160,1722574252165,-576.829577,0.00017493,2]
[333860161,1722574252176,-548.784218,0.00017493,2]
[333860162,1722574252186,-548.784218,0.00017493,2]
[333860163,1722574252197,-252.046482,0.00017493,2]
[333860164,1722574252207,-252.046482,0.00017493,2]
[333860165,1722574252216,-151.0,0.00017493,2]
[333860166,1722574252226,-151.0,0.00017493,2]
[333860167,1722574252235,-189.421915,0.00017493,2]
[333860168,1722574252245,-545.120266,0.00017493,2]
[333860169,1722574252257,-2049.813708,0.00017493,2]
[333860170,1722574252268,-189.421915,0.00017493,2]
[333860171,1722574252279,-545.120266,0.00017493,2]
[333860172,1722574252289,-2049.813708,0.00017493,2]
[333860173,1722574252299,-639.579434,0.00017498,2]
[333860174,1722574252308,-639.579434,0.00017498,2]
[333860175,1722574252318,-781.936404,0.00017498,2]
[333860176,1722574252327,-781.936404,0.00017498,2]
[333860177,1722574252336,-3000.0,0.00017498,2]
[333860178,1722574252348,-3000.0,0.00017498,2]
[333860179,1722574252357,-641.589965,0.00017498,2]
[333860180,1722574252369,-227.723428,0.00017498,2]
[333860181,1722574252379,-641.589965,0.00017498,2]
[333860182,1722574252388,-227.723428,0.00017498,2]
[333860183,1722574252398,-151.0,0.00017498,2]
[333860184,1722574252407,-2923.122339,0.00017498,2]
[333860185,1722574252416,-10000.0,0.00017498,2]
[333860186,1722574252425,-2923.122339,0.00017498,2]
[333860187,1722574252434,-10000.0,0.00017498,2]
[333860188,1722574252444,-3401.317663,0.00017498,2]
[333860189,1722574252454,-576.829577,0.00017498,2]
[333860190,1722574252463,-3401.317663,0.00017498,2]
[333860191,1722574252473,-576.829577,0.00017498,2]
[333860192,1722574252483,-548.784218,0.00017498,2]
[333860193,1722574252492,-548.784218,0.00017498,2]
[333860194,1722574252501,-151.0,0.00017498,2]
[333860195,1722574252511,-151.0,0.00017498,2]
[333860196,1722574252520,-189.421915,0.00017498,2]
[333860197,1722574252530,-545.120266,0.00017498,2]
[333860198,1722574252539,-189.421915,0.00017498,2]
[333860199,1722574252550,-545.120266,0.00017498,2]
[333860200,1722574252559,-2891.905432,0.00017502,2]
[333860201,1722574252568,-2891.905432,0.00017502,2]
[333860202,1722574252577,-2320.149399,0.00017502,2]
[333860203,1722574252587,-151.0,0.00017502,2]
[333860204,1722574252596,-2320.149399,0.00017502,2]
[333860205,1722574252605,-151.0,0.00017502,2]
[333860206,1722574252614,-151.0,0.00017502,2]
[333860207,1722574252623,-1429.335615,0.00017502,2]
[333860208,1722574252633,-1429.335615,0.00017502,2]
[333860209,1722574252642,-2818.870051,0.00017502,2]
[333860210,1722574252651,-387.027,0.00017502,2]
[333860211,1722574252660,-2818.870051,0.00017502,2]
[333860212,1722574252670,-387.027,0.00017502,2]
[333860213,1722574252679,-151.0,0.00017502,2]
[333860214,1722574252688,-195.831385,0.00017502,2]
[333860215,1722574252697,-151.0,0.00017502,2]
[333860216,1722574252706,-151.0,0.00017502,2]
[333860217,1722574252715,-151.0,0.00017502,2]
[333860218,1722574252724,-151.0,0.00017502,2]
[333860219,1722574252733,-353.13109,0.00017502,2]
[333860220,1722574252743,-442.020559,0.00017502,2]
[333860221,1722574252752,-353.13109,0.00017502,2]
[333860222,1722574252761,-442.020559,0.00017502,2]
[333860223,1722574252771,-259.258395,0.00017502,2]
[333860224,1722574252780,-151.0,0.00017502,2]
[333860225,1722574252789,-396.086747,0.00017502,2]
[333860226,1722574252799,-396.086747,0.00017502,2]
[333860227,1722574252808,-440.588384,0.00017502,2]
[333860228,1722574252817,-440.588384,0.00017502,2]
[333860229,1722574252826,-259.481726,0.00017502,2]
[333860230,1722574252835,-259.481726,0.00017502,2]
[333860231,1722574252846,-151.0,0.00017502,2]
[333860232,1722574252855,-270.16714,0.00017502,2]
[333860233,1722574252864,-273.480326,0.00017502,2]
[333860234,1722574252873,-273.480326,0.00017502,2]
[333860235,1722574252883,-403.427385,0.00017502,2]
[333860236,1722574252892,-403.427385,0.00017502,2]
[333860237,1722574252901,-2278.906888,0.00017502,2]
[333860238,1722574252911,-263.53605,0.00017502,2]
[333860239,1722574252920,-263.53605,0.00017502,2]
[333860240,1722574252929,-151.0,0.00017502,2]
[333860241,1722574252939,-2278.906888,0.00017502,2]
[333860242,1722574252949,-284.253472,0.00017502,2]
[333860243,1722574252959,-284.253472,0.00017502,2]
[333860244,1722574252969,-151.0,0.00017502,2]
[333860245,1722574252978,-341.59881,0.00017502,2]
[333860246,1722574252987,-6758.65714,0.00017502,2]
[333860247,1722574252996,-151.0,0.00017502,2]
[333860248,1722574253005,-6758.65714,0.00017502,2]
[333860249,1722574253014,-341.59881,0.00017502,2]
[333860250,1722574253025,-276.166449,0.00017502,2]
[333860251,1722574253034,-276.166449,0.00017502,2]
[333860252,1722574253043,-332.028963,0.00017502,2]
[333860253,1722574253053,-332.028963,0.00017502,2]
[333860254,1722574253064,-151.0,0.00017503,2]
[333860255,1722574253073,-151.0,0.00017503,2]
[333860256,1722574253082,-151.0,0.00017503,2]
[333860257,1722574253096,-151.0,0.00017503,2]
[333860258,1722574253106,-677.78733,0.00017503,2]
[333860259,1722574253115,-677.78733,0.00017503,2]
[333860260,1722574253124,-151.0,0.00017503,2]
[333860261,1722574253134,-151.0,0.00017503,2]
[333860262,1722574253143,-426.925432,0.00017503,2]
[333860263,1722574253153,-426.925432,0.00017503,2]
[333860264,1722574253162,-151.0,0.00017503,2]
[333860265,1722574253175,-151.0,0.00017503,2]
[333860266,1722574253184,-213.587047,0.00017503,2]
[333860267,1722574253194,-213.587047,0.00017503,2]
[333860268,1722574253204,-151.0,0.00017503,2]
[333860269,1722574253214,-151.0,0.00017503,2]
[333860270,1722574253226,-639.579434,0.00017503,2]
[333860271,1722574253237,-639.579434,0.00017503,2]
[333860272,1722574253248,-781.936404,0.00017503,2]
[333860273,1722574253258,-781.936414,0.00017503,2]
[333860274,1722574253268,-3000.0,0.00017503,2]
[333860275,1722574253277,-3000.0,0.00017503,2]
[333860276,1722574253287,-641.589965,0.00017503,2]
[333860277,1722574253296,-227.723428,0.00017503,2]
[333860278,1722574253306,-641.58996,0.00017503,2]
[333860279,1722574253315,-227.723423,0.00017503,2]
[333860280,1722574253325,-151.0,0.00017503,2]
[333860281,1722574253334,-2923.122339,0.00017503,2]
[333860282,1722574253346,-10000.0,0.00017503,2]
[333860283,1722574253356,-2923.122343,0.00017503,2]
[333860284,1722574253529,-10000.0,0.00017503,2]
[333860285,1722574253562,-3401.317663,0.00017503,2]
[333860286,1722574253572,-576.829577,0.00017503,2]
[333860287,1722574253582,-3401.317654,0.00017503,2]
[333860288,1722574253593,-576.829573,0.00017503,2]
[333860289,1722574253603,-548.784218,0.00017503,2]
[333860290,1722574253612,-548.784212,0.00017503,2]
[333860291,1722574253622,-252.046482,0.00017503,2]
[333860292,1722574253632,-252.046482,0.00017503,2]
[333860293,1722574253642,-151.0,0.00017503,2]
[333860294,1722574253652,-151.0,0.00017503,2]
[333860295,1722574253662,-189.421915,0.00017503,2]
[333860296,1722574253672,-545.120266,0.00017503,2]
[333860297,1722574253682,-2049.813708,0.00017503,2]
[333860298,1722574253691,-189.421906,0.00017503,2]
[333860299,1722574253700,-545.120264,0.00017503,2]
[333860300,1722574253710,-2049.813708,0.00017503,2]
[333860301,1722574253719,-150.0,0.00017507,2]
[333860302,1722574253729,-167.0,0.00017507,2]
[333860303,1722574253738,-40237.59084483,0.00017508,3]
[333860304,1722574253758,-344.831931,0.00016912,2]
[333860305,1722574253767,-144.41955264,0.00017508,3]
[333860306,1722574253778,-625.45400003,0.00017508,3]
[333860307,1722574253789,-2384.6723601,0.00017508,3]
[333860308,1722574253801,-865.4224377,0.00017508,3]
[333860309,1722574253812,-572.85,0.00017508,3]
[333860310,1722574253824,-662.63936826,0.00017508,3]
[333860311,1722574253835,-1563.91,0.00017508,3]
[333860312,1722574253848,-1595.25934319,0.00017508,3]
[333860313,1722574253861,-15183.09361482,0.00017508,3]
[333860314,1722574253873,-3278.93484286,0.00017508,3]
[333860315,1722574253885,-288.85832387,0.00017508,3]
[333860316,1722574253896,-269.38241397,0.00017508,3]
[333860317,1722574253907,-27466.2388339,0.00017508,3]
[333860318,1722574253919,-469.65,0.00017508,3]
[333860319,1722574253930,-500.0,0.00017508,3]
[333860320,1722574253942,-4796.56120018,0.00017508,3]
[333860321,1722574253954,-3623.03644494,0.00017508,3]
[333860322,1722574253969,-344.831931,0.0001698,2]
[333860323,1722574253979,-38.04950147,0.00017508,3]
[333860324,1722574341730,500.0,0.00025,60]
[333860325,1722574408072,200.0,0.00026988,120]
[333860335,1722575382448,239.49,0.00027,120]
[333860349,1722575432139,-200.0,0.00011,2]
[333860350,1722575432150,-166.69588861,0.00011105,2]
[333860351,1722575432161,-277.35830429,0.00011105,2]
[333860352,1722575432171,-155.0,0.00011105,2]
[333860353,1722575432181,-550.0,0.00012,2]
[333860354,1722575432192,-205.21,0.0001376,2]
[333860355,1722575432202,-600.0,0.00014,2]
[333860356,1722575432212,-160.24817792,0.00014105,2]
[333860357,1722575432221,-160.24817792,0.00014105,2]
[333860358,1722575432231,-2628.24241209,0.00014667,2]
[333860359,1722575432241,-300.0,0.00014693,2]
[333860360,1722575432250,-300.0,0.00014693,2]
[333860361,1722575432259,-329.9888,0.00014694,2]
[333860362,1722575432269,-1938.17710776,0.00014694,2]
[333860363,1722575432281,-277.00849224,0.00014694,2]
[333860364,1722575432291,-4176.54343917,0.00014694,2]
[333860365,1722575432302,-1249.78872132,0.00014694,2]
[333860366,1722575432319,-555.249,0.00014694,2]
[333860367,1722575432330,-805.63031946,0.00014694,2]
[333860368,1722575432349,-2015.29501095,0.00014694,2]
[333860369,1722575432361,-2700.0,0.00014694,2]
[333860370,1722575432376,-11676.20481038,0.00014694,2]
[333860371,1722575432389,-3018.95867372,0.00014694,2]
[333860372,1722575432401,-2389.08779226,0.00014694,2]
[333860373,1722575432412,-1028.79,0.00014694,2]
[333860374,1722575432424,-4207.06363913,0.00014694,2]
[333860375,1722575432436,-9902.378992,0.00014694,2]
[333860376,1722575432451,-527.322701,0.00014694,2]
[333860377,1722575432462,-1760.8392671,0.00014694,2]
[333860378,1722575432474,-2262.25562924,0.00014694,2]
[333860379,1722575432487,-2341.08930427,0.00014694,2]
[333860380,1722575432496,-623.71755966,0.00015,2]
[333860381,1722575432506,-2751.0,0.00015486,2]
[333860382,1722575432515,-279.04,0.00015643,2]
[333860383,1722575432528,-41.79876897,0.00015754,2]
[333860384,1722575432541,-1810.62123103,0.00015754,2]
[333860385,1722575432551,-152.0,0.00015771,3]
[333860387,1722575432560,-250.0,0.00015774,2]
[333860389,1722575432570,-1725.4141,0.00015818,2]
[333860391,1722575432579,-199.34,0.00015853,2]
[333860393,1722575432591,-200.599,0.0001591,2]
[333860394,1722575432600,-1255.0,0.00015918,2]
[333860395,1722575432609,-1709.449,0.00015918,2]
[333860396,1722575432619,-1582.0,0.00015918,2]
[333860397,1722575432628,-621.0,0.00015918,2]
[333860398,1722575432637,-450.0,0.00015918,2]
[333860399,1722575432647,-1135.0,0.00015918,2]
[333860400,1722575432657,-235.074,0.00015918,2]
[333860401,1722575432666,-281.344,0.00015918,2]
[333860402,1722575432677,-2626.12773185,0.00015918,2]
[333860405,1722575438049,-660.87226815,0.00015918,2]
[333860407,1722575438058,-27.62773185,0.00015918,2]
[333860410,1722575438426,-21704.37226815,0.00015918,2]
[333860411,1722575438435,-200.0,0.00015927,2]
[333860412,1722575438445,-250.0,0.00015976,2]
[333860413,1722575438459,-152.0,0.00015988,4]
[333860414,1722575438468,-185.33,0.00015988,2]
[333860415,1722575438478,-650.0,0.00016,2]
[333860416,1722575438487,-9037.68,0.00016,2]
[333860418,1722575438496,-205.21,0.00016024,2]
[333860419,1722575438505,-420.0,0.00016086,2]
[333860420,1722575438515,-718.13742074,0.00016113,2]
[333860421,1722575438525,-720.96,0.0001615,2]
[333860422,1722575438536,-420.0,0.00016162,2]
[333860423,1722575438548,-270.42,0.00016189,2]
[333860424,1722575438558,-152.0,0.00016204,5]
[333860425,1722575438567,-911.70418352,0.00016216,2]
[333860426,1722575438578,-470.14575921,0.00016216,2]
[333860427,1722575438590,-714.662132,0.00016216,2]
[333860428,1722575438601,-710.95025,0.00016216,2]
[333860429,1722575438613,-398.64828018,0.00016216,2]
[333860430,1722575438626,-3502.24032318,0.00016216,2]
[333860431,1722575438640,-585.41820824,0.00016216,2]
[333860432,1722575438656,-1934.99086367,0.00016216,2]
[333860433,1722575438666,-1000.0,0.00016326,2]
[333860434,1722575438676,-1500.0,0.000164,2]
[333860435,1722575438685,-152.0,0.0001642,6]
[333860436,1722575438694,-167.0,0.00016433,2]
[333860437,1722575438705,-152.0,0.00016637,7]
[333860438,1722575438715,-167.0,0.00016756,2]
[333860439,1722575438724,-1230.0,0.000168,2]
[333860440,1722575438734,-152.0,0.00016853,8]
[333860441,1722575438744,-370.21098026,0.00016897,2]
[333860442,1722575438754,-155.0,0.00016948,2]
[333860443,1722575438764,-522.31224238,0.00016949,2]
[333860444,1722575438774,-2658.8699,0.0001696,2]
[333860445,1722575438783,-7820.99718613,0.00016996,2]
[333860446,1722575438795,-598.92439701,0.00016996,2]
[333860447,1722575438808,-676.53111901,0.00016996,2]
[333860448,1722575438821,-13813.61826794,0.00016996,2]
[333860449,1722575438833,-517.448597,0.00016996,2]
[333860450,1722575438846,-9571.39362899,0.00016996,2]
[333860451,1722575438858,-1151.13219666,0.00016996,2]
[333860452,1722575438870,-1173.98706814,0.00016996,2]
[333860453,1722575438882,-2471.95372313,0.00016996,2]
[333860454,1722575438891,-152.0,0.0001707,9]
[333860455,1722575438901,-197.39839065,0.00017096,2]
[333860456,1722575438915,-1847.439928,0.00017096,2]
[333860457,1722575438928,-12561.75106199,0.00017096,2]
[333860458,1722575438940,-394.12782113,0.00017096,2]
[333860459,1722575438952,-7003.6542243,0.00017096,2]
[333860460,1722575438968,-323.17385295,0.00017096,2]
[333860461,1722575438980,-7320.13845581,0.00017096,2]
[333860468,1722575440102,-171.35,0.00016403,2]
[333860469,1722575440112,-171.35,0.00017079,2]
[333860470,1722575440123,-146.67677294,0.00017096,2]
[333860471,1722575440134,-413.7332465,0.00017096,2]
[333860472,1722575440146,-1058.18044309,0.00017096,2]
[333860473,1722575440157,-4170.03465609,0.00017096,2]
[333860474,1722575440169,-279.85498289,0.00017096,2]
[333860475,1722575440181,-594.155,0.00017096,2]
[333860476,1722575440192,-265.1286,0.00017096,2]
[333860477,1722575440208,-1009.71667059,0.00017096,2]
[333860478,1722575440223,-3981.85142367,0.00017096,2]
[333860479,1722575440235,-4697.0959694,0.00017096,2]
[333860480,1722575440245,-2500.0,0.00017096,2]
[333860481,1722575440254,-7239.03064662,0.00017096,2]
[333860482,1722575440263,-10000.0,0.00017196,2]
[333860483,1722575440273,-1000.0,0.000172,4]
[333860484,1722575440282,-1000.0,0.000172,4]
[333860485,1722575440291,-1000.0,0.000172,4]
[333860486,1722575440300,-1200.0,0.000172,2]
[333860487,1722575440310,-165.27334212,0.0001726,2]
[333860488,1722575440319,-217.3982719,0.0001726,2]
[333860489,1722575440328,-152.0,0.00017286,10]
[333860490,1722575440338,-1005.0,0.000173,4]
[333860491,1722575440347,-1000.0,0.0001731,2]
[333860492,1722575440356,-26986.71769598,0.00017349,2]
[333860493,1722575440367,-403.47012699,0.00017349,2]
[333860494,1722575440383,-1852.95989709,0.00017349,2]
[333860495,1722575440398,-8552.83846389,0.00017349,2]
[333860496,1722575440408,-500.0,0.00017368,2]
[333860497,1722575440417,-500.0,0.00017369,2]
[333860498,1722575440427,-414.42088347,0.00017399,2]
[333860499,1722575440438,-1762.37384286,0.00017399,2]
[333860500,1722575440448,-1000.0,0.000174,4]
[333860501,1722575440462,-1000.0,0.000174,5]
[333860502,1722575440471,-7239.03064661,0.00017438,2]
[333860503,1722575440481,-11196.2619046,0.00017496,2]
[333860504,1722575440492,-152.0,0.00017502,11]
[333860505,1722575440501,-151.1624816,0.00017506,2]
[333860506,1722575440511,-206.2539056,0.00017506,2]
[333860507,1722575440522,-2703.0667158,0.00017506,2]
[333860508,1722575440534,-3374.7024411,0.00017506,2]
[333860509,1722575440544,-8313.88074497,0.00017506,2]
[333860510,1722575440556,-13564.08495973,0.00017506,2]
[333860511,1722575440565,-2901.3170205,0.00017506,2]
[333860512,1722575440574,-167.7378169,0.00017506,2]
[333860513,1722575440583,-17300.262919,0.00017506,2]
[333860514,1722575440594,-3465.8249885,0.00017506,2]
[333860515,1722575440604,-3000.0,0.00017507,2]
[333860516,1722575440615,-11196.2619046,0.00017508,2]
[333860517,1722575440625,-211.08410022,0.00017509,2]
[333860518,1722575440635,-5950.2341632,0.00017509,2]
[333860519,1722575440646,-839.91,0.00017589,2]
[333860520,1722575440656,-187.264902,0.00017596,2]
[333860521,1722575440666,-217.0,0.00017596,2]
[333860522,1722575440676,-279.04,0.00017598,2]
[333860523,1722575440685,-870.41226559,0.00017602,2]
[333860524,1722575440695,-300.0,0.0001761,2]
[333860525,1722575440705,-22392.5238092,0.00017692,2]
[333860526,1722575440716,-37795.98618395,0.00017702,2]
[333860527,1722575440726,-152.0,0.00017719,12]
[333860528,1722575440738,-159.3,0.00017726,2]
[333860529,1722575440748,-150.0,0.00017726,2]
[333860530,1722575440758,-150.0,0.00017726,2]
[333860531,1722575440768,-709.62,0.00017726,2]
[333860532,1722575440777,-150.0,0.00017726,2]
[333860533,1722575440786,-150.0,0.00017726,2]
[333860534,1722575440795,-150.0,0.00017726,2]
[333860535,1722575440804,-150.0,0.00017726,2]
[333860536,1722575440814,-150.0,0.00017726,2]
[333860537,1722575440825,-150.0,0.00017726,2]
[333860538,1722575440836,-345.61845412,0.00017739,2]
[333860539,1722575440846,-171.35,0.00017756,2]
[333860540,1722575440856,-11196.2619046,0.0001777,2]
[333860541,1722575440866,-7239.03064661,0.0001778,2]
[333860542,1722575440875,-306.51095069,0.00017782,2]
[333860543,1722575440885,-870.41226553,0.00017805,2]
[333860544,1722575440894,-713.6,0.0001789,2]
[333860545,1722575440904,-224.28,0.00017921,2]
[333860546,1722575440915,-152.0,0.00017935,13]
[333860547,1722575440926,-535.41646623,0.00018,2]
[333860548,1722575440936,-700.0,0.00018,2]
[333860549,1722575440946,-870.41226553,0.00018008,2]
[333860550,1722575440955,-11196.2619046,0.00018045,2]
[333860551,1722575440965,-33619.99634926,0.00018055,2]
[333860552,1722575440982,-4175.98983469,0.00018055,2]
[333860553,1722575440991,-11196.2619046,0.00018112,2]
[333860554,1722575441000,-7239.03064661,0.00018122,2]
[333860555,1722575441010,-167.0,0.00018139,2]
[333860556,1722575441020,-152.0,0.00018152,14]
[333860557,1722575441030,-720.96,0.00018169,2]
[333860558,1722575441039,-2844.0,0.00018178,2]
[333860559,1722575441048,-870.41226553,0.00018212,2]
[333860560,1722575441057,-270.42,0.00018212,2]
[333860561,1722575441067,-205.21,0.00018288,2]
[333860562,1722575441076,-152.0,0.00018368,15]
[333860563,1722575441086,-2856.05996988,0.00018398,2]
[333860564,1722575441099,-19536.46383932,0.00018398,2]
[333860565,1722575441108,-300.0,0.000184,6]
[333860566,1722575441118,-1743.37633748,0.00018408,2]
[333860567,1722575441129,-455.07799912,0.00018408,2]
[333860568,1722575441584,-1192.0,0.00018408,2]
[333860569,1722575441605,-412.42,0.00018408,2]
[333860570,1722575441616,-33993.11184735,0.00018408,2]
[333860571,1722575441626,-870.41226553,0.00018415,2]
[333860572,1722575441636,-171.35,0.00018433,2]
[333860573,1722575441647,-168.10634716,0.00018438,2]
[333860574,1722575441657,-167.0,0.00018444,2]
[333860575,1722575441666,-173.56915184,0.00018447,2]
[333860576,1722575441676,-4000.0,0.00018463,7]
[333860577,1722575441685,-7239.03064661,0.00018464,2]
[333860578,1722575441694,-700.0,0.000185,6]
[333860579,1722575441704,-136962.0276863,0.00018537,2]
[333860580,1722575441715,-64570.6865967,0.00018537,2]
[333860581,1722575441724,-315527.886953,0.00018537,2]
[333860582,1722575441734,-78881.9717382,0.00018538,2]
[333860583,1722575441744,-151.0,0.00018545,2]
[333860584,1722575441754,-392199.62463165,0.00018547,2]
[333860598,1722575443132,-200.0,0.00015925,2]
[333860600,1722575443142,-3091.55431609,0.00018547,2]
[333860602,1722575443154,-7012.096,0.00018547,2]
[333860604,1722575443166,-8798.02859357,0.00018547,2]
[333860605,1722575443178,-211074.37018354,0.00018547,2]
[333860606,1722575443250,-1103.43325584,0.00018547,2]
[333860607,1722575443309,-19285.75170967,0.00018547,2]
[333860608,1722575443322,-1200.25651494,0.00018547,2]
[333860609,1722575443333,-8355.96858486,0.00018547,2]
[333860610,1722575443431,-613.8654546,0.00018547,2]
[333860611,1722575443443,-822.9747023,0.00018547,2]
[333860612,1722575443457,-2164.06068103,0.00018547,2]
[333860613,1722575443493,-365.0,0.00018547,2]
[333860614,1722575443504,-6099.87879838,0.00018547,2]
[333860615,1722575443515,-261.4769987,0.00018547,2]
[333860629,1722575446822,-210.64448715,0.00017509,2]
[333860630,1722575446831,-208.04181487,0.00017509,2]
[333860631,1722575446842,-1834.28607805,0.00017509,2]
[333860632,1722575446855,-232.21745396,0.00017577,2]
[333860633,1722575446866,-432.05266282,0.00017577,2]
[333860634,1722575446878,-565.134902,0.00017577,2]
[333860635,1722575446895,-887.58529992,0.00017577,2]
[333860636,1722575446906,-1240.67180606,0.00018547,2]
[333860637,1722575446917,-833.28345775,0.00018547,2]
[333860638,1722575446929,-6131.41171996,0.00018547,2]
[333860639,1722575446938,-151.0,0.00018547,2]
[333860640,1722575446947,-151.0,0.00018547,2]
[333860641,1722575446957,-151.0,0.00018547,2]
[333860642,1722575446966,-151.0,0.00018547,2]
[333860643,1722575446976,-151.0,0.00018547,2]
[333860644,1722575446986,-151.0,0.00018547,2]
[333860645,1722575446995,-151.0,0.00018547,2]
[333860646,1722575447004,-168.883885,0.00018547,2]
[333860647,1722575447014,-151.0,0.00018547,2]
[333860648,1722575447023,-151.0,0.00018547,2]
[333860649,1722575447032,-362.073528,0.00018547,2]
[333860650,1722575447041,-362.073528,0.00018547,2]
[333860651,1722575447051,-151.0,0.00018547,2]
[333860652,1722575447060,-232.2162,0.00018547,2]
[333860653,1722575447069,-232.2162,0.00018547,2]
[333860654,1722575447079,-151.0,0.00018547,2]
[333860655,1722575447088,-151.0,0.00018547,2]
[333860656,1722575447099,-1735.143259,0.00018547,2]
[333860657,1722575447109,-438.952371,0.00018547,2]
[333860658,1722575447118,-1735.143259,0.00018547,2]
[333860659,1722575447127,-438.952371,0.00018547,2]
[333860660,1722575447136,-406.672398,0.00018547,2]
[333860661,1722575447145,-406.672398,0.00018547,2]
[333860662,1722575447154,-857.601369,0.00018547,2]
[333860663,1722575447164,-857.601369,0.00018547,2]
[333860664,1722575447173,-170.583425,0.00018547,2]
[333860665,1722575447182,-256.155259,0.00018547,2]
[333860666,1722575447191,-256.155259,0.00018547,2]
[333860667,1722575447201,-151.0,0.00018547,2]
[333860668,1722575447211,-1662.993749,0.00018547,2]
[333860669,1722575447220,-151.0,0.00018547,2]
[333860670,1722575447230,-197.440105,0.00018547,2]
[333860671,1722575447239,-1662.993749,0.00018547,2]
[333860672,1722575447248,-197.440105,0.00018547,2]